Cogmind - Beta 10.2 @@@ ROGUE MODE // 2020.12.26 @ 01:18:46 Player: SureStep Result: Destroyed by G-34 Mercenary with Small Laser Performance ------------- Evolutions (1) 500 Regions Visited (2) 400 Robots Destroyed (67) 335 Value Destroyed (1586) 1586 Prototype IDs (7) 140 Alien Tech Used (0) 0 Bonus (114) 114 TOTAL SCORE: 3075 Bonus ------- High Alert Combat Kills 114 Cogmind --------- Core Integrity 0/400 Matter 23/300 Energy 100/100 System Corruption 0% Temperature Cool (6) Movement Core (150) Ox2 Location -9/Materials Parts ------- > --- POWER (1) -------- (None) > --- PROPULSION (2) --- (None) > --- UTILITY (4) ------ Medium Storage Unit Signal Interpreter Improved Targeting Computer > --- WEAPON (2) ------- Mini Grenade Launcher > --- INVENTORY (8) ---- Light Deuterium Engine Compact Wheel Compact Wheel Improved Heat Sink Large Matter Pod (0) Assault Cannon Assault Cannon Peak State ------------ > --- POWER ------------ Light Deuterium Engine > --- PROPULSION ------- Compact Wheel Compact Wheel > --- UTILITY ---------- Medium Storage Unit Sensor Array Signal Interpreter Improved Targeting Computer > --- WEAPON ----------- Assault Cannon Assault Cannon > --- INVENTORY -------- Light Deuterium Engine Compact Wheel Compact Wheel Compact Wheel Improved Heat Sink Assault Cannon Assault Cannon [Rating: 17] Favorites ----------- Power Light Deuterium Engine Engine Light Deuterium Engine Propulsion Compact Wheel Wheel Compact Wheel Utility Sensor Array Device Sensor Array Storage Medium Storage Unit Processor Signal Interpreter Weapon Assault Cannon Energy Gun Medium Laser Energy Cannon Particle Cannon Ballistic Cannon Assault Cannon Launcher Mini Grenade Launcher Build | -11 -10 -9 ------- Run | Scr Mat Mat Slots Evolved 2 | . . 2 Power . | . . . Propulsion . | . . . Utility 2 | . . 2 Weapon . | . . . Parts Attached 30 | 7 9 14 Power 7 | 1 2 4 Engine 7 | 1 2 4 Core . | . . . Reactor . | . . . Propulsion 4 | 3 . 1 Treads . | . . . Leg . | . . . Wheel 4 | 3 . 1 Hover . | . . . Flight . | . . . Utility 9 | 1 3 5 Device 5 | . 2 3 Storage 2 | 1 1 . Processor 2 | . . 2 Hackware . | . . . Protection . | . . . Artifact . | . . . Weapon 10 | 2 4 4 Energy Gun 3 | 2 1 . Energy Cannon 3 | . 3 . Ballistic Gun . | . . . Ballistic Cannon 3 | . . 3 Launcher 1 | . . 1 Special Weapon . | . . . Impact Weapon . | . . . Slashing Weapon . | . . . Piercing Weapon . | . . . Special Melee Weapon . | . . . Unidentified Prototypes . | . . . Parts Lost 7 | . . 7 Power 1 | . . 1 Propulsion 2 | . . 2 Utility 2 | . . 2 Weapon 2 | . . 2 Highest Loss Streak 2 | . . 2 Average Slot Usage (%) 96 | . 96 95 Engine 12 | . 14 10 Wheel 23 | . 28 20 Device 11 | . 11 10 Storage 12 | . 14 11 Processor 11 | . . 20 Energy Gun 7 | . 16 . Energy Cannon 4 | . 10 . Ballistic Cannon 9 | . . 17 Launcher 2 | . . 3 Naked Turns . | . . . Heaviest Build 27 | 11 22 27 Greatest Support 32 | 32 32 32 Greatest Overweight (x) 6 | . . 6 Average Overweight (x) . | . . . Largest Inventory Capacity 8 | 6 8 8 Average Capacity 7 | 4 7 8 Most Carried 8 | 4 8 8 Average Carried 6 | 2 6 7 Final Capacity 8 | 6 8 8 Final Carried 8 | 1 8 7 Class Distribution -------------------- 70% | Scavenger-Mutant 29% | Mutant Dominant Class ---------------- Mutant | -10/Materials Scavenger-Mutant | -9/Materials Resources | -11 -10 -9 ----------- Run | Scr Mat Mat Matter Collected 1188 | 270 80 838 Remotely . | . . . Salvage Created 1904 | 89 894 921 Parts 146 | 2 55 89 Haulers Intercepted 5 | . 2 3 Recyclers Shooed 1 | . 1 . Parts Field Recycled . | . . . Retrieved Matter . | . . . Parts Self-Destructed . | . . . Prevented . | . . . Kills | -11 -10 -9 ------- Run | Scr Mat Mat Combat Hostiles Destroyed 40 | . 10 30 Guns 5 | . 5 . Cannons 29 | . 5 24 AOE 6 | . . 6 Classes Destroyed 11 | 1 6 4 Worker 5 | . 2 3 Builder 3 | . 1 2 Tunneler 1 | . . 1 Hauler 5 | . 2 3 Recycler 3 | 1 2 . Operator 4 | . 2 2 Watcher 6 | . 3 3 Swarmer 7 | . . 7 Grunt 27 | . 10 17 Brawler 1 | . . 1 Sentry 5 | . . 5 Best Kill Streak 6 | 1 6 6 Combat Bots Only 5 | . 2 5 Max Kills in Single Turn 3 | 1 3 3 Gunslinging 1 | . 1 . Exploded 1 | . . 1 Melee . | . . . Uniques/NPCs Destroyed . | . . . Combat | -11 -10 -9 -------- Run | Scr Mat Mat Damage Taken 1485 | . 221 1264 Core 473 | . 65 408 Absorbed by Shields . | . . . Core Remaining (%) 87 | 100 74 . Volleys Fired 158 | 3 54 101 Largest 2 | 1 2 2 Hottest 136 | 50 136 88 Shots Fired 292 | 3 102 187 Gun 77 | 3 74 . Cannon 202 | . 28 174 Launcher 13 | . . 13 Special . | . . . Kinetic 174 | . . 174 Thermal 65 | 3 62 . Explosive 13 | . . 13 Electromagnetic 40 | . 40 . Robot Hit Streak 14 | 1 14 9 Robot Miss Streak 6 | 2 6 6 Penetration Max . | . . . Secondary Targets 1 | . 1 . Max Gunslinging Chain 1 | . 1 . Shots Hit Robots 160 | 1 56 103 Core Hits 86 | 2 31 53 Critical Hits . | . . . Critical Kills . | . . . Critical Parts Destroyed . | . . . Melee Attacks . | . . . Impact . | . . . Slashing . | . . . Piercing . | . . . Sneak Attacks . | . . . Combat Hostiles . | . . . Follow-up Attacks . | . . . Damage Inflicted 4072 | 24 1046 3002 Guns 663 | 24 639 . Cannons 2576 | . 284 2292 Explosions 833 | . 123 710 Melee . | . . . Ramming . | . . . Kinetic 2292 | . . 2292 Thermal 669 | 24 645 . Explosive 710 | . . 710 Electromagnetic 401 | . 401 . Impact . | . . . Slashing . | . . . Piercing . | . . . Highest Corruption 1 | . 1 . Average Corruption 1 | . 1 . Corruption Purged . | . . . Effects 1 | . 1 . Message Errors 1 | . 1 . Overload Shots . | . . . Overflow Damage 102 | . . 102 Projectiles 46 | . . 46 Explosions 56 | . . 56 Melee . | . . . Knockbacks 18 | . . 18 Impact . | . . . Kinetic 17 | . . 17 Secondary 1 | . . 1 Self-Inflicted Damage 52 | . . 52 Shots 3 | . . 3 Rammed . | . . . Targets Rammed . | . . . Kicked . | . . . Crushed . | . . . Highest Temperature 243 | 50 243 217 Average Temperature 53 | 30 59 49 Received Heat Transfer 603 | . 135 468 Siege Activations . | . . . Robots Corrupted 1 | . 1 . Combat Hostiles . | . . . Parts Fried 2 | . 2 . Impact Corruptions . | . . . Robots Melted . | . . . Combat Hostiles . | . . . Parts Melted 1 | . 1 . Heat Transferred 1495 | 74 1421 . Parts Sabotaged . | . . . Parts Stolen . | . . . Parts Stripped . | . . . Power Chain Reactions 2 | . 2 . Missiles Intercepted . | . . . Alert | -11 -10 -9 ------- Run | Scr Mat Mat Peak Influence 728 | 5 246 728 Initial 89 | . 3 89 Average 238 | 1 113 340 Maximum Alert Level 3 | . 1 3 Low Security (%) 48 | 100 77 24 Level 1 32 | . 22 41 Level 2 17 | . . 30 Level 3 1 | . . 3 Level 4 . | . . . Level 5 . | . . . High Security . | . . . Max Security . | . . . Squads Dispatched 10 | . 4 6 Investigation 4 | . 2 2 Extermination . | . . . Reinforcement 6 | . 2 4 Assault . | . . . Garrison . | . . . Intercept . | . . . Construction Impeded 2 | . . 2 Haulers Reinforced . | . . . Stealth | -11 -10 -9 --------- Run | Scr Mat Mat Distress Signals 6 | . . 6 Communications Jammed . | . . . Distress Signals . | . . . Times Spotted 70 | . 20 50 Peak Tracking Total 7 | . 3 7 Tactical Retreats 8 | . 3 5 Traps | -11 -10 -9 ------- Run | Scr Mat Mat Traps Triggered 1 | . 1 . Indirectly . | . . . Trap Hack Attempts . | . . . Triggered . | . . . Disarmed 6 | . 6 . Reprogrammed 1 | . . 1 Reused . | . . . Traps Extracted . | . . . Installed . | . . . Triggered . | . . . Machines | -11 -10 -9 ---------- Run | Scr Mat Mat Machines Disabled 8 | . 2 6 Max in Single Turn 2 | . 2 1 Machines Sabotaged . | . . . Garrisons Compromised . | . . . Overloaded Fab Kills . | . . . Fab Network Shutdowns . | . . . Hacking | -11 -10 -9 --------- Run | Scr Mat Mat Machines Accessed 13 | . 8 5 Terminals 11 | . 7 4 Fabricators . | . . . Repair Stations 1 | . 1 . Recycling Units . | . . . Scanalyzers 1 | . . 1 Garrison Access . | . . . Total Hacks 44 | . 27 17 Successful 25 | . 12 13 Failed 19 | . 15 4 Catastrophic 1 | . 1 . Database Lockouts . | . . . Manual . | . . . Terminals 38 | . 25 13 Fabricators . | . . . Repair Stations 2 | . 2 . Recycling Units . | . . . Scanalyzers 4 | . . 4 Garrison Access . | . . . Terminal Hacks 19 | . 10 9 Prototype ID Bank 4 | . 3 1 Terminal Index 1 | . . 1 Locate Traps 7 | . 4 3 Disarm Traps 1 | . 1 . Reprogram Traps 1 | . . 1 Dispatch Records 1 | . . 1 Hauler Manifests 2 | . 1 1 Zone Layout 2 | . 1 1 Fabricator Hacks . | . . . Repair Station Hacks 2 | . 2 . Scan Component 1 | . 1 . Repair 1 | . 1 . Recycling Unit Hacks . | . . . Scanalyzer 4 | . . 4 Insert Component 2 | . . 2 Analyze 2 | . . 2 Garrison Access Hacks . | . . . Unauthorized Hacks . | . . . Terminals . | . . . Fabricators . | . . . Repair Stations . | . . . Recycling Units . | . . . Scanalyzers . | . . . Garrison Access . | . . . Data Cores Recovered 2 | . 1 1 Used . | . . . Hacking Detections 13 | . 8 5 Full Trace Events 6 | . 3 3 Feedback Events . | . . . Feedback Blocked . | . . . Robot Schematics Acquired . | . . . Robots Built . | . . . Matter . | . . . Time . | . . . Total Robot Build Rating . | . . . Part Schematics Acquired 2 | . . 2 Parts Built . | . . . Matter . | . . . Time . | . . . Total Part Build Rating . | . . . Parts Repaired 1 | . 1 . Time 26 | . 26 . Parts Recycled . | . . . Recycled Matter . | . . . Retrieved Matter . | . . . Retrieved Components . | . . . Parts Scanalyzed 2 | . . 2 Part Schematics Acquired 2 | . . 2 Parts Damaged . | . . . Bothacking | -11 -10 -9 ------------ Run | Scr Mat Mat Used RIF Installer . | . . . Robots Hacked . | . . . Non-combat . | . . . Combat . | . . . Robot Hacks Applied . | . . . Relay Couplers Released . | . . . Robots Rewired . | . . . Allies Hacked . | . . . Hacks Repelled . | . . . Allies | -11 -10 -9 -------- Run | Scr Mat Mat Total Allies . | . . . Largest Group . | . . . Highest-Rated Group . | . . . Highest-Rated Ally . | . . . Total Orders . | . . . Ally Attacks . | . . . Total Damage . | . . . Kills . | . . . Allies Corrupted . | . . . Allies Melted . | . . . Intel | -11 -10 -9 ------- Run | Scr Mat Mat Robot Analysis Total . | . . . Derelict Logs Recovered . | . . . Drone Launches . | . . . Drone Recoveries . | . . . Exploration | -11 -10 -9 ------------- Run | Scr Mat Mat Turns Passed 2727 | 48 1155 1524 Spaces Moved 1889 | 30 887 972 Core 8 | 2 . 6 Treads . | . . . Legs . | . . . Wheels 1881 | 28 887 966 Hover . | . . . Flight . | . . . Fastest Speed 50 | 50 100 100 Average Speed 100 | 88 100 101 Slowest Speed 350 | 100 100 350 Overloaded Moves . | . . . Propulsion Burnouts . | . . . Robots Hopped . | . . . Cave-ins Triggered . | . . . Exploration Rate (%) 53 | 3 95 63 Regions Visited 2 Branch Regions . Pre-discovered Areas . | . . . Known Exits Taken . | . . . Unknown Exits Taken 2 | 1 1 . Scrap Searched . | . . . Spaces Dug . | . . . Terrain Destroyed 140 | . . 140 Melee . | . . . Projectile 38 | . . 38 AOE 102 | . . 102 Terrain Rammed . | . . . Walls Destroyed . | . . . Machines Disabled . | . . . Actions | -11 -10 -9 --------- Run | Scr Mat Mat Total 2440 | 48 1060 1332 Wait 275 | . 69 206 Move 1887 | 29 886 972 Hop . | . . . Pick Up 52 | 8 25 19 Fast Attach . | . . . Attach 28 | 7 8 13 Detach 5 | . 1 4 Swap 2 | . 1 1 Drop 33 | 1 16 16 Fire 158 | 3 54 101 Melee . | . . . Ram . | . . . Kick . | . . . Crush . | . . . Escape Stasis . | . . . Rewire . | . . . Trap . | . . . Miscellaneous . | . . . Route ------- -11/Scrapyard -10/Materials (discovered 5 exits: *Mat x3 / [*Min x2]) -9/Materials (discovered 2 exits: [*Mat] / *Min) History --------- Turn | Location | Event 20 | -11/Scrapyard | Discovered new exit (range 16) 49 | -11/Scrapyard | Entered Materials 332 | -10/Materials | Build established: Mutant 344 | -10/Materials | Discovered new exit (range 6) 463 | -10/Materials | Discovered new exit (range 16) 576 | -10/Materials | Repaired Med. Laser 784 | -10/Materials | Build established: Scavenger-Mutant 830 | -10/Materials | Discovered new exit (range 9) 1054 | -10/Materials | Discovered new exit (range 18) 1114 | -10/Materials | Discovered new exit (range 16) 1204 | -10/Materials | Entered another Materials area 1204 | -9/Materials | Evolved 2 slots: Utility x2 1410 | -9/Materials | Discovered new exit (range 4) 1657 | -9/Materials | Discovered new exit (range 9) 1667 | -9/Materials | Identified exit to Mines 2598 | -9/Materials | Core integrity fell below 50% 2693 | -9/Materials | Core integrity fell below 20% 2728 | -9/Materials | Destroyed by G-34 Mercenary with Small Laser Last Messages --------------- K-01 Serf collects debris. Lgt. Deuterium Engine destroyed. R-06 Scavenger collects Ion Engine. U-05 Engineer lays Concrete. K-01 Serf collects debris. U-05 Engineer lays Concrete. Imp. Sensor Array destroyed. U-05 Engineer lays Concrete. K-01 Serf collects debris. U-05 Engineer lays Concrete. K-01 Serf collects debris. U-05 Engineer lays Concrete. K-01 Serf collects debris. U-05 Engineer lays Concrete. The unstable cave ceiling collapses. K-01 Serf collects debris. U-05 Engineer builds a Wall. The unstable cave ceiling collapses. K-01 Serf collects debris. U-05 Engineer builds a Wall. Map ----- +----------------------------------------------------+ | ?????????????????????????????????????????????????? | | ?????????????????????????????????????????????????? | | ?????????????????????????????????????????????????? | | ?????????????????????????????????????????????????? | | ?????????????????????????????????????????????????? | | ?????????????????????????????????????????????????? | | ?????????????#+########??????????????????????????? | | ?????????????# ??????????????????????????? | | ?????????????# ??????????????????????????? | | ?????????????#] ??????????????????????????? | | ?????????????# ??###?????????????????????? | | ?????????????# ### ##????????????????????? | | ?????????] ??# # #????????????????????? | | ????????? ??# # ##???????????????????? | | ??#?????? ??# # #???????????????????? | | ??# ????? ????## # [ # ####?????????????????? | | "?# #####+###### % """ #?????????????????? | | " # =! ## R" #?????????????????? | | ? + *=![ " " #?????????????????? | | ??# u #?????????????????? | | ????# ##### # # #?????????????????? | | ????# #???#### =# [ #?????????????????? | | ????# #??????### kg ####?????????????????? | | ????# #???????# gg# #?????????????????? | | #####+## #????????# # ###???????????????? | | # #????????# @ + ????????? | | "" """ # #??####??### ###???????????????? | | "" """ # #? ?????# # #?????????????????? | | "" """ # # """ ?????# # [! *#?????????????????? | | / """ ?????# #####r##?????????????????? | | ! [ =# """ """??# #???? #??????????????????? | | ########!* ## #????? ??????????????????? | | !![*!!% ## #?????? ?????????????????? | | ! = = ## #??????? ????????????????? | | = | ?# #???????? ?? !???????????? | | +###### # ########## #??????? ???????????? | | ## # ?????# ##### ???????????? | | # #??# #??????????????????? | | """ #" ???# ###+#??????????????????? | | """ # # ??## #??????????????????????? | | """ #" > # ??# +??????????????????????? | | #"| #? ?### ##??????????????????????? | | #" #?? ?+ #???????????????????????? | | #""" #??????### #???????????????????????? | | ######## ##???????## ##??????????????????????? | | ##### ##+####### #??????????????????????? | | #??????????????????????? | | #??????????????????????? | | / #??????????????????????? | | ######/####+###### #??????????????????????? | +----------------------------------------------------+ Best States ------------- Heat Dissipation 28 Energy Generation 14 Energy Capacity 280 Matter Stores 300 Matter Capacity 300 Sight Range 16 Robot Scan Range 13 Terrain Scan Range 14 Terrain Scan Density 10 Evasion (%) 42 Targeting Accuracy 6 Item Schematics ----------------- Com. Wheel | -9/Materials | Scanalyzed Assault Cannon | -9/Materials | Scanalyzed Robot Schematics ------------------ None Fabricated ------------ Nothing Alien Tech Used ----------------- None Achievements -------------- None Challenges ------------ None Game ------ Seed GuidedSniperWand Manual? 0 Play Time 00:58:54 Cumulative 17.0 hours Start 2020.12.26 @ 00:12:41 End 2020.12.26 @ 01:18:46 Sessions 1 Manual Loads 0 Difficulty Rogue Special Mode None Game No. 19 Rogue 19 Adventurer 0 Explorer 0 Win Type - Total 0 Types 0/0/0/0/0/0/0/0/0 Lore% 10 Gallery% 14 Achievement% 13 Wizard Run 0 Options --------- ASCII 0 Keyboard 0 Movement Mouse Keybinds 0 Fullscreen 1 Font 18/SmallcapsGlow Map View 76x50 Tactical HUD 0 Map Filters NONE Filters NONE Steam 1 RUN: 0aeb8b91-5033-4c37-94e1-81749789de4b